Workbook

Sheet Лист1
A1: Габаритные размеры (внутренний блок) ШхВхГ, мм | B1: Габаритные размеры (наружный блок) ШхВхГ, мм | C1: Размеры товара (значение × значение × значение) | D1: сумма наименьших значений из A и B | E1: большее из вторых по величине из A и B | F1: большее из наибольших по величине из A и B | H1: Друго решение | I1: Объем, вар1 | J1: Объем, вар2 | K1: Совпадение | L1: Доля
A2: 920х210х635 | B2: 760х590Х285 | C2: 495x635x920 | D2: 495=210+285 | E2: 635=макс(635;590) | F2: 920=макс(920;760) | H2: =pKorob(A2,B2) -> 495x920x635 | I2: =prod(C2)/10^9 -> 0.289179 | J2: =prod(H2)/10^9 -> 0.289179 | K2: =+I2=J2 -> TRUE | L2: =J2/I2 -> 1
A3: 920х210х635 | B3: 845х700х320 | C3: 530x700x920 | H3: =pKorob(A3,B3) -> 530x920x700 | I3: =prod(C3)/10^9 -> 0.34132 | J3: =prod(H3)/10^9 -> 0.34132 | K3: =+I3=J3 -> TRUE | L3: =J3/I3 -> 1
A4: 1140х270х775 | B4: 990х965х345 | C4: 615x965x1140 | H4: 615x1140x965 | I4: 0.6765615 | J4: 0.6765615 | K4: =+I4=J4 -> TRUE | L4: =J4/I4 -> 1
A5: 1200х300х865 | B5: 900х1170х350 | C5: 650x900x1200 | H5: 650x1200x900 | I5: 0.702 | J5: 0.702 | K5: =+I5=J5 -> TRUE | L5: =J5/I5 -> 1
A6: 1200х300х865 | B6: 900х1170х350 | C6: 650x900x1200 | H6: 650x1200x900 | I6: 0.702 | J6: 0.702 | K6: =+I6=J6 -> TRUE | L6: =J6/I6 -> 1
A7: 840х285х840 | B7: 911х1335х400 | C7: 685x911x1335 | H7: 2175x400x911 | I7: 0.833086725 | J7: 0.79257 | K7: =+I7=J7 -> FALSE | L7: =J7/I7 -> 0.9513655376
A8: 840x285x840 | B8: 911х1335х400 | C8: 685x911x1335 | H8: 2175x400x911 | I8: 0.833086725 | J8: 0.79257 | K8: =+I8=J8 -> FALSE | L8: =J8/I8 -> 0.9513655376
A9: 840x285x840 | B9: 1070х995х400 | C9: 685x995x1070 | H9: 685x1070x995 | I9: 0.72928525 | J9: 0.72928525 | K9: =+I9=J9 -> TRUE | L9: =J9/I9 -> 1
A10: 840x230x840 | B10: 930х700х370 | C10: 600x840x930 | H10: 600x930x840 | I10: 0.46872 | J10: 0.46872 | K10: =+I10=J10 -> TRUE | L10: =J10/I10 -> 1
A11: 840x840x230 | B11: 760х590х285 | C11: 515x840x840 | H11: 1430x840x285 | I11: 0.363384 | J11: 0.342342 | K11: =+I11=J11 -> FALSE | L11: =J11/I11 -> 0.9420943135
A12: 840x840x230 | B12: 845х700х320 | C12: 550x840x845 | H12: 550x845x840 | I12: 0.39039 | J12: 0.39039 | K12: =+I12=J12 -> TRUE | L12: =J12/I12 -> 1
A13: 840x840x230 | B13: 990х965х345 | C13: 575x965x990 | H13: 575x990x965 | I13: 0.54932625 | J13: 0.54932625 | K13: =+I13=J13 -> TRUE | L13: =J13/I13 -> 1
A14: 840x840x230 | B14: 900х1170х350 | C14: 580x900x1170 | H14: 580x900x1170 | I14: 0.61074 | J14: 0.61074 | K14: =+I14=J14 -> TRUE | L14: =J14/I14 -> 1
A15: 840x840x300 | B15: 900х1170х350 | C15: 650x900x1170 | H15: 2010x900x350 | I15: 0.68445 | J15: 0.63315 | K15: =+I15=J15 -> FALSE | L15: =J15/I15 -> 0.9250493097
A16: 580х275х580 | B16: 886х535х304 | C16: 579x580x886 | H16: 1466x304x580 | I16: 0.29753652 | J16: 0.25848512 | K16: =+I16=J16 -> FALSE | L16: =J16/I16 -> 0.8687509016
A17: 1670х680х247 | B17: 911х1335х400 | C17: 647x911x1670 | H17: 647x1670x911 | I17: 0.98432639 | J17: 0.98432639 | K17: =+I17=J17 -> TRUE | L17: =J17/I17 -> 1
A18: 1670х680х247 | B18: 911х1335х400 | C18: 647x911x1670 | H18: 647x1670x911 | I18: 0.98432639 | J18: 0.98432639 | K18: =+I18=J18 -> TRUE | L18: =J18/I18 -> 1
A19: 1245х680х247 | B19: 1070х995х400 | C19: 647x995x1245 | H19: 647x1245x995 | I19: 0.801487425 | J19: 0.801487425 | K19: =+I19=J19 -> TRUE | L19: =J19/I19 -> 1
A20: 1245х680х247 | B20: 930х700х370 | C20: 617x700x1245 | H20: 617x1245x700 | I20: 0.5377155 | J20: 0.5377155 | K20: =+I20=J20 -> TRUE | L20: =J20/I20 -> 1
A21: 880х635х203 | B21: 886х535х304 | C21: 507x635x886 | H21: 507x886x635 | I21: 0.28524327 | J21: 0.28524327 | K21: =+I21=J21 -> TRUE | L21: =J21/I21 -> 1
A22: 990х203х660 | B22: 760х590х285 | C22: 488x660x990 | H22: 488x990x660 | I22: 0.3188592 | J22: 0.3188592 | K22: =+I22=J22 -> TRUE | L22: =J22/I22 -> 1
A23: 990х203х660 | B23: 845х700х320 | C23: 523x700x990 | H23: 523x990x700 | I23: 0.362439 | J23: 0.362439 | K23: =+I23=J23 -> TRUE | L23: =J23/I23 -> 1
A24: 1280х203х660 | B24: 990х965х345 | C24: 548x965x1280 | H24: 548x1280x965 | I24: 0.6768896 | J24: 0.6768896 | K24: =+I24=J24 -> TRUE | L24: =J24/I24 -> 1
A25: 1670х240х680 | B25: 900х1170х350 | C25: 590x900x1670 | H25: 590x1670x900 | I25: 0.88677 | J25: 0.88677 | K25: =+I25=J25 -> TRUE | L25: =J25/I25 -> 1
A26: 1670х240х680 | B26: 900х1170х350 | C26: 590x900x1670 | H26: 590x1670x900 | I26: 0.88677 | J26: 0.88677 | K26: =+I26=J26 -> TRUE | L26: =J26/I26 -> 1
A27: 900x310x225 | B27: 802x535x298 | C27: 523x535x900 | H27: 760x900x310 | I27: 0.2518245 | J27: 0.21204 | K27: =+I27=J27 -> FALSE | L27: =J27/I27 -> 0.8420149747
A28: 900x310x225 | B28: 802x535x298 | C28: 523x535x900 | H28: 760x900x310 | I28: 0.2518245 | J28: 0.21204 | K28: =+I28=J28 -> FALSE | L28: =J28/I28 -> 0.8420149747
A29: 715x285x194 | B29: 700x550x270 | C29: 464x550x715 | H29: 744x715x285 | I29: 0.182468 | J29: 0.1516086 | K29: =+I29=J29 -> FALSE | L29: =J29/I29 -> 0.8308777429
A30: 715x285x194 | B30: 700x550x270 | C30: 464x550x715 | H30: 744x715x285 | I30: 0.182468 | J30: 0.1516086 | K30: =+I30=J30 -> FALSE | L30: =J30/I30 -> 0.8308777429
A31: 805x285x194 | B31: 770x555x300 | C31: 494x555x805 | H31: 749x805x300 | I31: 0.22070685 | J31: 0.1808835 | K31: =+I31=J31 -> FALSE | L31: =J31/I31 -> 0.8195645038
A32: 957x302x213 | B32: 770x555x300 | C32: 513x555x957 | H32: 768x957x302 | I32: 0.272472255 | J32: 0.221962752 | K32: =+I32=J32 -> FALSE | L32: =J32/I32 -> 0.8146251515
A33: 1040x327x220 | B33: 845x702x363 | C33: 583x702x1040 | H33: 922x1040x363 | I33: 0.42563664 | J33: 0.34807344 | K33: =+I33=J33 -> FALSE | L33: =J33/I33 -> 0.8177713272
A34: 1040x327x220 | B34: 845x702x363 | C34: 583x702x1040 | H34: 922x1040x363 | I34: 0.42563664 | J34: 0.34807344 | K34: =+I34=J34 -> FALSE | L34: =J34/I34 -> 0.8177713272
A35: 690x283x199 | B35: 663x421x254 | C35: 453x421x690 | H35: 620x690x283 | I35: 0.13159197 | J35: 0.1210674 | K35: =+I35=J35 -> FALSE | L35: =J35/I35 -> 0.9200211837
A36: 690x283x199 | B36: 663x421x254 | C36: 453x421x690 | H36: 620x690x283 | I36: 0.13159197 | J36: 0.1210674 | K36: =+I36=J36 -> FALSE | L36: =J36/I36 -> 0.9200211837
A37: 750x285x200 | B37: 700x500x225 | C37: 425x500x750 | H37: 785x750x225 | I37: 0.159375 | J37: 0.13246875 | K37: =+I37=J37 -> FALSE | L37: =J37/I37 -> 0.8311764706
A38: 900x310x225 | B38: 795x525x290 | C38: 515x525x900 | H38: 750x900x310 | I38: 0.2433375 | J38: 0.20925 | K38: =+I38=J38 -> FALSE | L38: =J38/I38 -> 0.8599167822
A39: 900x310x225 | B39: 800x690x300 | C39: 525x690x900 | H39: 915x900x310 | I39: 0.326025 | J39: 0.255285 | K39: =+I39=J39 -> FALSE | L39: =J39/I39 -> 0.7830227743
A40: 1082x330x233 | B40: 800x690x300 | C40: 533x690x1082 | H40: 923x1082x330 | I40: 0.39792714 | J40: 0.32956638 | K40: =+I40=J40 -> FALSE | L40: =J40/I40 -> 0.8282078473
A41: 715x285x194 | B41: 770x555x300 | C41: 494x555x770 | H41: 749x770x300 | I41: 0.2111109 | J41: 0.173019 | K41: =+I41=J41 -> FALSE | L41: =J41/I41 -> 0.8195645038
A42: 805x285x194 | B42: 770x555x300 | C42: 494x555x805 | H42: 749x805x300 | I42: 0.22070685 | J42: 0.1808835 | K42: =+I42=J42 -> FALSE | L42: =J42/I42 -> 0.8195645038
A43: 957x302x213 | B43: 800x554x333 | C43: 546x554x957 | H43: 767x957x333 | I43: 0.289477188 | J43: 0.244428327 | K43: =+I43=J43 -> FALSE | L43: =J43/I43 -> 0.8443785456
A44: 1040x327x220 | B44: 845x702x363 | C44: 583x702x1040 | H44: 922x1040x363 | I44: 0.42563664 | J44: 0.34807344 | K44: =+I44=J44 -> FALSE | L44: =J44/I44 -> 0.8177713272
A45: 690x283x199 | B45: 720x540x260 | C45: 459x540x720 | H45: 739x720x283 | I45: 0.1784592 | J45: 0.15057864 | K45: =+I45=J45 -> FALSE | L45: =J45/I45 -> 0.843770677
A46: 690x283x199 | B46: 720x540x260 | C46: 459x540x720 | H46: 739x720x283 | I46: 0.1784592 | J46: 0.15057864 | K46: =+I46=J46 -> FALSE | L46: =J46/I46 -> 0.843770677
